Workbook

Sheet Analitico
A1: Item | B1: Descrição da despesa | C1: Destinatário da despesa | D1: Tipo de despesa | E1: Etapa | F1: Natureza | G1: Quantidade | H1: Unidade | I1: Preço Unitário | J1: Preço Total | K1: Data | L1: Número do documento | M1: Centro de custo | N1: Total Acumulado
A4: 1 | B4: Tê PVC soldável 32 mm | C4: Objetiva | D4: Material | E4: Instalações de água | F4: Conexões | G4: 8 | H4: un | I4: 2.48 | J4: =ROUND(G4*I4,2) -> 19.84 | K4: 2021-08-16 | L4: 133147894 | M4: Obra 1 | N4: =SUM(J$4:J4) -> 19.84
A5: =A4+1 -> 2 | B5: Joelho PVC soldável 90º 32 mm | C5: Objetiva | D5: Material | E5: Instalações de água | F5: Conexões | G5: 18 | H5: un | I5: 1.56 | J5: 28.08 | K5: 2021-08-16 | L5: 667942 | M5: Obra 1 | N5: =SUM(J$4:J5) -> 47.92
A6: =A5+1 -> 3 | B6: Tê PVC soldável 25 mm | C6: Objetiva | D6: Material | E6: Instalações de água | F6: Conexões | G6: 20 | H6: un | I6: 0.79 | J6: 15.8 | K6: 2021-08-16 | L6: 667955 | M6: Obra 1 | N6: =SUM(J$4:J6) -> 63.72
A7: 4 | B7: Base de registro de pressão 3/4" | C7: Condor | D7: Material | E7: Instalações de água | F7: Registros | G7: 4 | H7: un | I7: 26.68 | J7: 106.72 | K7: 2021-08-20 | L7: 671281 | M7: Obra 1 | N7: =SUM(J$4:J7) -> 170.44
A8: 5 | B8: Base de registro de gaveta 3/4" | C8: Condor | D8: Material | E8: Instalações de água | F8: Registros | G8: 8 | H8: un | I8: 26.88 | J8: 215.04 | K8: 2021-08-20 | L8: 4290354 | M8: Obra 1 | N8: =SUM(J$4:J8) -> 385.48
A9: =A8+1 -> 6 | B9: Aço CA-60 4,2 mm (3/16") | C9: São Lucas | D9: Material | E9: Laje | F9: Aços | G9: 100 | H9: br | I9: 14.5 | J9: =ROUND(G9*I9,2) -> 1450 | K9: 2021-08-23 | L9: 12345 | M9: Obra 4 | N9: =SUM(J$4:J9) -> 1835.48
A10: 7 | B10: Aço CA-50 6,3 mm (1/4") | C10: São Lucas | D10: Material | E10: Laje | F10: Aços | G10: 20 | H10: br | I10: 30 | J10: 600 | K10: 2021-08-23 | L10: 12345 | M10: Obra 4 | N10: =SUM(J$4:J10) -> 2435.48
A11: 8 | B11: Aço CA-60 4,2 mm (3/16") | C11: Master | D11: Material | E11: Laje | F11: Aços | G11: 150 | H11: br | I11: =1930.8/140 -> 13.79142857 | J11: 2068.71 | K11: 2021-08-25 | L11: N/A | M11: Obra 2 | N11: =SUM(J$4:J11) -> 4504.19
A12: 9 | B12: Aço CA-50 6,3 mm (1/4") | C12: Master | D12: Material | E12: Laje | F12: Aços | G12: 30 | H12: br | I12: 29 | J12: 870 | K12: 2021-08-25 | L12: 443903 | M12: Obra 2 | N12: =SUM(J$4:J12) -> 5374.19
A13: 10 | B13: Tê PVC soldável 32 mm | C13: Objetiva | D13: Material | E13: Instalações de água | F13: Conexões | G13: 8 | H13: un | I13: 2.48 | J13: =ROUND(G13*I13,2) -> 19.84 | K13: 2021-08-28 | L13: 11222333 | M13: Obra 3 | N13: =SUM(J$4:J13) -> 5394.03
A14: 11 | B14: Joelho PVC soldável 90º 32 mm | C14: Objetiva | D14: Material | E14: Instalações de água | F14: Conexões | G14: 18 | H14: un | I14: 2 | J14: =ROUND(G14*I14,2) -> 36 | K14: 2021-08-28 | L14: 676700 | M14: Obra 3 | N14: =SUM(J$4:J14) -> 5430.03
A15: 12 | B15: Tê PVC soldável 25 mm | C15: Objetiva | D15: Material | E15: Instalações de água | F15: Conexões | G15: 20 | H15: un | I15: 1 | J15: 20 | K15: 2021-08-28 | L15: 707070 | M15: Obra 3 | N15: =SUM(J$4:J15) -> 5450.03
A16: 13 | B16: Base de registro de pressão 3/4" | C16: Condor | D16: Material | E16: Instalações de água | F16: Registros | G16: 4 | H16: un | I16: 30 | J16: 120 | K16: 2021-08-30 | L16: 757500 | M16: Obra 3 | N16: =SUM(J$4:J16) -> 5570.03
A17: 14 | B17: Base de registro de gaveta 3/4" | C17: Condor | D17: Material | E17: Instalações de água | F17: Registros | G17: 8 | H17: un | I17: 28 | J17: 224 | K17: 2021-08-30 | L17: 4300001 | M17: Obra 3 | N17: =SUM(J$4:J17) -> 5794.03

Sheet Curva ABC
A1: ITEM | B1: DESCRIÇÃO | C1: UNIDADE | D1: QUANTIDADE | E1: CUSTO UNITÁRIO MÉDIO | F1: TOTAL POR ITEM | G1: % RELATIVO | H1: % ACUMULADO | I1: CLASSIFICAÇÃO ABC | K1: TOTAL DE SERVIÇOS | L1: 7
K2: CUSTO TOTAL | L2: =SUM(F4:F10) -> 5794.03
K3: CENTRO DE CUSTO
A4: 1 | B4: Aço CA-60 4,2 mm (3/16") | C4: br | D4: =SUMIF(Analitico!B:B,B4,Analitico!G:G) -> 250 | E4: 14.07484 | F4: =SUMIF(Analitico!B:B,B4,Analitico!J:J) -> 3518.71 | G4: 0.6072992373 | H4: 0.6072992373 | I4: Item A
A5: 2 | B5: Aço CA-50 6,3 mm (1/4") | C5: br | D5: =SUMIF(Analitico!B:B,B5,Analitico!G:G) -> 50 | E5: 29.4 | F5: =SUMIF(Analitico!B:B,B5,Analitico!J:J) -> 1470 | G5: 0.2537094216 | H5: 0.8610086589 | I5: Item B
A6: 3 | B6: Base de registro de gaveta 3/4" | C6: un | D6: =SUMIF(Analitico!B:B,B6,Analitico!G:G) -> 16 | E6: 27.44 | F6: =SUMIF(Analitico!B:B,B6,Analitico!J:J) -> 439.04 | G6: 0.07577454725 | H6: 0.9367832062 | I6: Item B
A7: 4 | B7: Base de registro de pressão 3/4" | C7: un | D7: =SUMIF(Analitico!B:B,B7,Analitico!G:G) -> 8 | E7: 28.34 | F7: =SUMIF(Analitico!B:B,B7,Analitico!J:J) -> 226.72 | G7: 0.03912993202 | H7: 0.9759131382 | I7: Item C
A8: 5 | B8: Joelho PVC soldável 90º 32 mm | C8: un | D8: =SUMIF(Analitico!B:B,B8,Analitico!G:G) -> 36 | E8: 1.78 | F8: =SUMIF(Analitico!B:B,B8,Analitico!J:J) -> 64.08 | G8: 0.01105965968 | H8: 0.9869727979 | I8: Item C
A9: 6 | B9: Tê PVC soldável 32 mm | C9: un | D9: =SUMIF(Analitico!B:B,B9,Analitico!G:G) -> 16 | E9: 2.48 | F9: =SUMIF(Analitico!B:B,B9,Analitico!J:J) -> 39.68 | G9: 0.006848428469 | H9: 0.9938212263 | I9: Item C
A10: 7 | B10: Tê PVC soldável 25 mm | C10: un | D10: =SUMIF(Analitico!B:B,B10,Analitico!G:G) -> 40 | E10: 0.895 | F10: =SUMIF(Analitico!B:B,B10,Analitico!J:J) -> 35.8 | G10: 0.006178773669 | H10: 1 | I10: Item C
B11: QUANTIDADE DE ITENS | C11: =SUBTOTAL(103,B4:B10) -> 7 | D11: CUSTO TOTAL | F11: =SUBTOTAL(109,F4:F10) -> 5794.03
